[Event "RLP-ch Rapid 2024"]
[Site "Landau"]
[Date "2024.05.04"]
[Round "6.10"]
[White "Anissimova, Mariya"]
[Black "Perovic-Ottstadt, Sanja"]
[Result "1-0"]
[ECO "C02"]
[WhiteElo "1850"]
[BlackElo "1648"]
[Annotator "NA RC"]
[PlyCount "57"]
[EventDate "2024.05.03"]
[EventType "swiss"]
[EventCountry "GER"]
[SourceTitle "playchess.com"]
[Source "ChessBase"]
[SourceQuality "1"]
[TimeControl "900+5"]

1. e4 {[%emt 0:00:02]} e6 {[%emt 0:00:01]} 2. d4 {[%emt 0:00:02]} d5 {[%emt 0:00:02]} 3. e5 {[%emt 0:00:02]} c5 {[%emt 0:00:01]} 4. c3 {[%emt 0:00:02]} Qb6 {[%emt 0:00:02]} 5. Nf3 {[%emt 0:00:06]} Bd7 {[%emt 0:00:08]} 6. a3 {[%emt 0:00:18]} Nc6 {[%emt 0:00:07]} 7. b4 {[%emt 0:00:09]} cxd4 {[%emt 0:00:03]} 8. cxd4 {[%emt 0:00:02]} Nge7 {[%emt 0:00:12]} 9. Be3 {[%emt 0:00:06]} Ng6 {[%emt 0:00:12]} 10. Bd3 {[%emt 0:00:16]} Be7 {[%emt 0:00:04]} 11. O-O {[%emt 0:00:05]} O-O {[%emt 0:00:05]} 12. Nc3 {[%emt 0:00:11]} Rac8 {[%emt 0:00:22]} 13. Rc1 {[%emt 0:00:18]} a6 {[%emt 0:00:14]} 14. Na4 {[%emt 0:00:06]} Qd8 {[%emt 0:00:04]} 15. Nc5 {[%emt 0:00:35]} Qc7 {[%emt 0:00:29]} 16. Bb1 {[%emt 0:00:25]} Na7 {[%emt 0:00:21]} 17. Nxe6 {[%emt 0:01:13]} Qb6 {[%emt 0:00:59]} 18. Nxf8 {[%emt 0:00:07]} Rxf8 {[%emt 0:00:04]} 19. h4 {[%emt 0:00:38]} Nxh4 {[%emt 0:00:25]} 20. Nxh4 {[%emt 0:00:06]} Bxh4 {[%emt 0:00:02]} 21. Qh5 {[%emt 0:00:09]} Bxf2+ {[%emt 0:01:11]} 22. Bxf2 {[%emt 0:00:04]} g6 {[%emt 0:00:12]} 23. Qh6 {[%emt 0:00:15]} Nb5 {[%emt 0:00:45]} 24. Rc5 {[%emt 0:01:10]} Qe6 {[%emt 0:01:03]} 25. Bh4 {[%emt 0:00:54]} f5 {[%emt 0:00:56]} 26. exf6 {[%emt 0:01:04]} Rf7 {[%emt 0:00:19]} 27. Re1 {[%emt 0:01:13]} Qg4 {[%emt 0:00:44]} 28. Rc8+ {[%emt 0:00:51]} Bxc8 {[%emt 0:00:43]} 29. Re8+ {[%emt 0:00:03]} 1-0

[Event "RLP-ch Rapid 2024"]
[Site "Landau"]
[Date "2024.05.04"]
[Round "7.1"]
[White "Boder, Jan"]
[Black "Carow, Johannes"]
[Result "1-0"]
[ECO "A36"]
[WhiteElo "2318"]
[BlackElo "2456"]
[Annotator "TA"]
[PlyCount "103"]
[EventDate "2024.05.03"]
[EventType "swiss"]
[EventCountry "GER"]
[SourceTitle "playchess.com"]
[Source "ChessBase"]
[SourceQuality "1"]
[TimeControl "900+5"]

{[%evp 20,103,45,47,65,72,83,84,109,93,126,114,97,93,91,84,109,47,53,50,54,58,64,54,52,56,52,15,81,78,82,70,90,87,102,108,123,82,100,84,73,8,8,8,8,8,8,5,8,8,8,0,0,0,0,-33,300,88,610,425,923,407,585,576,861,861,783,764,1027,976,1892,1319,2071,2054,2305,1725,2189,2069,2130,2003,4953,2878,2454,4513,5587,5106]} 1. c4 {[%emt 0:00:01]} g6 {[%emt 0:00:13]} 2. g3 {[%emt 0:00:00]} Bg7 {[%emt 0:00:05]} 3. Bg2 {[%emt 0:00:01]} c5 {[%emt 0:00:02]} 4. Nc3 {[%emt 0:00:02]} Nc6 {[%emt 0:00:01]} 5. a3 {[%emt 0:00:01]} e6 {[%emt 0:00:03]} 6. Rb1 {[%emt 0:00:15]} Nge7 {[%emt 0:00:07]} 7. b4 {[%emt 0:00:10]} d6 {[%emt 0:00:01] was the old line (7...cxb4).} 8. Nf3 {[%emt 0:00:14]} O-O {[%emt 0:00:05]} 9. O-O {[%emt 0:00:02]} b6 {[%emt 0:00:08] A36: Symmetrical English vs ...g6: 4 Bg2 Bg7.} 10. e3 {[%emt 0:00:44]} Bxc3 {[%emt 0:01:52]} 11. dxc3 {[%emt 0:00:03]} Rb8 $146 {[%emt 0:00:03]} ({Predecessor:} 11... Bb7 12. Qe2 Qc7 13. Rd1 Rac8 14. b5 Ne5 15. Nxe5 dxe5 16. Bxb7 Qxb7 17. e4 Kg7 {1-0 Karavade,E (2398)-Hracek,Z (2635) Pardubice op rap 24th rapid 2013 (8)}) 12. e4 {[%emt 0:00:40]} f6 {[%emt 0:00:52]} 13. Bh6 {[%emt 0:00:33]} Rf7 {[%emt 0:02:38]} 14. Rb2 {[%emt 0:00:00]} Bb7 {[%emt 0:01:59]} 15. Bh3 {[%emt 0:00:55]} Qd7 {[%emt 0:00:08]} 16. Bf4 {[%emt 0:02:16]} Nc8 {[%emt 0:02:46]} 17. Rd2 {[%emt 0:00:37]} Qe7 {[%emt 0:01:07]} 18. bxc5 {[%emt 0:02:59]} (18. Bxd6 $6 Nxd6 19. Rxd6 Nd4 20. Rxd4 cxd4 $14) (18. Rxd6 $16 Nxd6 19. Bxd6) 18... bxc5 $14 {[%emt 0:00:49]} 19. Rxd6 {[%emt 0:00:02]} ({Don't play} 19. Bxd6 Nxd6 20. Rxd6 Nd4 21. Rxd4 cxd4 22. cxd4 Bxe4 $15) 19... Nxd6 {[%emt 0:00:24]} 20. Bxd6 {[%emt 0:00:01]} Rd8 {[%emt 0:00:12]} 21. Bxe7 {[%emt 0:00:03]} Rxd1 {[%emt 0:00:01]} 22. Rxd1 {[%emt 0:00:01]} Rxe7 {[%emt 0:00:01]} 23. e5 {[%emt 0:00:40]} Kf7 {[%emt 0:01:07]} (23... Nxe5 $11 {keeps the balance.} 24. Nxe5 fxe5) 24. exf6 $16 {[%emt 0:02:11]} Kxf6 {[%emt 0:00:02]} 25. Bg2 {[%emt 0:00:26]} Na5 {[%emt 0:00:26]} 26. Nd2 {[%emt 0:00:04]} Bxg2 {[%emt 0:00:02]} 27. Kxg2 {[%emt 0:00:02]} Rc7 {[%emt 0:00:40]} 28. f3 {[%emt 0:00:44]} Ke7 {[%emt 0:00:13]} 29. Rb1 {[%emt 0:00:24]} Rd7 {[%emt 0:00:13]} 30. Ne4 {[%emt 0:00:33]} (30. Rb2 $16) 30... Nxc4 $11 {[%emt 0:00:05]} 31. Nxc5 {[%emt 0:00:02]} Rc7 {[%emt 0:00:15]} 32. Ne4 {[%emt 0:00:11]} Nxa3 {[%emt 0:00:08]} 33. Rb8 {[%emt 0:00:06]} Nc4 {[%emt 0:00:45]} 34. Rh8 {[%emt 0:00:37]} h5 $1 {[%emt 0:00:06]} 35. Rh6 {[%emt 0:00:33]} Nd6 {[%emt 0:00:14]} 36. Rh7+ {[%emt 0:00:22]} Nf7 {[%emt 0:00:05]} 37. Rg7 {[%emt 0:00:02] [#]} g5 $2 {[%emt 0:00:04][%mdl 8192]} (37... a5 $1 $15 38. Rxg6 a4) 38. Rh7 $2 {[%emt 0:01:16]} (38. Nxg5 $18 Kf6 39. Rxf7+ Rxf7 40. Nxf7 Kxf7 41. Kf1) 38... Rb7 $2 {[%emt 0:00:07][%mdl 8192]} (38... g4 $16) 39. Nxg5 {[%emt 0:00:06]} Kf6 {[%emt 0:00:01]} (39... Rb2+ $142 40. Kh3 Kf6 41. Nxf7 Kg6) 40. Nxf7 {[%emt 0:00:15]} (40. Rxf7+ $142 Rxf7 41. Nxf7 Kxf7 42. Kf2) 40... Rxf7 {[%emt 0:00:01]} (40... Rb2+ $142 41. Kh3 Kg6) 41. Rxh5 $18 {[%emt 0:00:01]} Rc7 {[%emt 0:00:01]} 42. Ra5 {[%emt 0:00:01]} (42. Rh6+ Ke5 43. h4 Kd6 $18) 42... e5 {[%emt 0:00:05]} 43. h4 {[%emt 0:00:00]} Kf5 {[%emt 0:00:01]} 44. f4 {[%emt 0:00:06]} Ke4 {[%emt 0:00:04]} 45. Rxe5+ {[%emt 0:00:02]} Kd3 {[%emt 0:00:01]} 46. h5 {[%emt 0:00:05]} Kxc3 {[%emt 0:00:04]} 47. Ra5 {[%emt 0:00:02]} Kb4 {[%emt 0:00:01]} 48. Ra6 {[%emt 0:00:03]} Kb5 {[%emt 0:00:03]} 49. Ra1 {[%emt 0:00:03]} a5 {[%emt 0:00:02]} 50. Kh3 {[%emt 0:00:38]} Rh7 {[%emt 0:00:05]} 51. g4 {[%emt 0:00:00]} a4 {[%emt 0:00:01]} 52. Kh4 {[%emt 0:00:00]} 1-0

[Event "RLP-ch Rapid 2024"]
[Site "Landau"]
[Date "2024.05.04"]
[Round "7.2"]
[White "Baerwinkel, Tobias"]
[Black "Barzen, Pascal"]
[Result "0-1"]
[ECO "A62"]
[WhiteElo "2289"]
[BlackElo "2291"]
[Annotator "NA RC"]
[PlyCount "74"]
[EventDate "2024.05.03"]
[EventType "swiss"]
[EventCountry "GER"]
[SourceTitle "playchess.com"]
[Source "ChessBase"]
[SourceQuality "1"]
[TimeControl "900+5"]

1. d4 {[%emt 0:00:00]} Nf6 {[%emt 0:00:01]} 2. c4 {[%emt 0:00:01]} e6 {[%emt 0:00:01]} 3. g3 {[%emt 0:00:01]} c5 {[%emt 0:00:01]} 4. d5 {[%emt 0:00:01]} d6 {[%emt 0:00:01]} 5. Bg2 {[%emt 0:00:14]} exd5 {[%emt 0:00:03]} 6. cxd5 {[%emt 0:00:01]} g6 {[%emt 0:00:01]} 7. Nc3 {[%emt 0:00:01]} Bg7 {[%emt 0:00:01]} 8. Nf3 {[%emt 0:00:02]} O-O {[%emt 0:00:01]} 9. O-O {[%emt 0:00:02]} Re8 {[%emt 0:00:01]} 10. Bf4 {[%emt 0:00:02]} h6 {[%emt 0:00:02]} 11. Qc1 {[%emt 0:00:09]} g5 {[%emt 0:00:02]} 12. Be3 {[%emt 0:00:06]} Bf5 {[%emt 0:00:28]} 13. h4 {[%emt 0:00:03]} g4 {[%emt 0:00:01]} 14. Nd2 {[%emt 0:00:02]} Rxe3 {[%emt 0:04:55]} 15. fxe3 {[%emt 0:00:01]} Bg6 {[%emt 0:00:01]} 16. Nc4 {[%emt 0:00:03]} Nh5 {[%emt 0:00:19]} 17. Qe1 {[%emt 0:01:02]} Qe7 {[%emt 0:00:25]} 18. Nb5 {[%emt 0:01:12]} Nd7 {[%emt 0:02:13]} 19. Nbxd6 {[%emt 0:00:29]} Ne5 {[%emt 0:00:32]} 20. Rf4 {[%emt 0:04:26]} b5 {[%emt 0:00:41]} 21. Nxe5 {[%emt 0:00:15]} Qxe5 {[%emt 0:00:23]} 22. Nxb5 {[%emt 0:00:42]} Nxf4 {[%emt 0:00:20]} 23. exf4 {[%emt 0:01:52]} Qxb2 {[%emt 0:00:02]} 24. f5 {[%emt 0:02:19]} Bxf5 {[%emt 0:00:48]} 25. Nd6 {[%emt 0:00:03]} Bc2 {[%emt 0:00:22]} 26. Rc1 {[%emt 0:00:11]} Be5 {[%emt 0:01:43]} 27. Qd2 {[%emt 0:01:39]} Bxd6 {[%emt 0:00:25]} 28. Rxc2 {[%emt 0:00:06]} Qa1+ {[%emt 0:00:37]} 29. Rc1 {[%emt 0:00:36]} Qe5 {[%emt 0:00:29]} 30. Qxh6 {[%emt 0:00:23]} Qxg3 {[%emt 0:00:12]} 31. Qg5+ {[%emt 0:00:04]} Kf8 {[%emt 0:00:06]} 32. Qh6+ {[%emt 0:00:08]} Ke8 {[%emt 0:00:57]} 33. Qh8+ {[%emt 0:00:23]} Kd7 {[%emt 0:00:00]} 34. Qxa8 {[%emt 0:00:05]} Qe3+ {[%emt 0:00:03]} 35. Kf1 {[%emt 0:00:10]} Qxc1+ {[%emt 0:00:01]} 36. Kf2 {[%emt 0:00:02]} g3+ {[%emt 0:00:03]} 37. Kf3 {[%emt 0:00:08]} Qf4# {[%emt 0:00:19]} 0-1

[Event "RLP-ch Rapid 2024"]
[Site "Landau"]
[Date "2024.05.04"]
[Round "7.3"]
[White "Muranyi, Karl-Jasmin"]
[Black "Commercon, Simon"]
[Result "0-1"]
[ECO "B07"]
[WhiteElo "2338"]
[BlackElo "2204"]
[Annotator "RC"]
[PlyCount "96"]
[EventDate "2024.05.03"]
[EventType "swiss"]
[EventCountry "GER"]
[SourceTitle "playchess.com"]
[Source "ChessBase"]
[SourceQuality "1"]
[TimeControl "900+5"]

1. e4 {[%emt 0:00:00]} d6 {[%emt 0:00:09]} 2. d4 {[%emt 0:00:10]} Nf6 {[%emt 0:00:01]} 3. Bd3 {[%emt 0:00:10]} e5 {[%emt 0:00:05]} 4. c3 {[%emt 0:00:19]} d5 {[%emt 0:01:34]} 5. dxe5 {[%emt 0:00:25]} Nxe4 {[%emt 0:00:02]} 6. Bxe4 {[%emt 0:00:22]} dxe4 {[%emt 0:00:01]} 7. Qa4+ {[%emt 0:00:33]} Bd7 {[%emt 0:00:01]} 8. Qxe4 {[%emt 0:00:30]} Bc6 {[%emt 0:00:01]} 9. Qg4 {[%emt 0:00:01]} Qd7 {[%emt 0:00:01]} 10. Qxd7+ {[%emt 0:00:02]} Nxd7 {[%emt 0:00:01]} 11. Nf3 {[%emt 0:00:24]} Bxf3 {[%emt 0:00:07]} 12. gxf3 {[%emt 0:00:01]} Nxe5 {[%emt 0:00:01]} 13. Ke2 {[%emt 0:00:15]} O-O-O {[%emt 0:00:06]} 14. Be3 {[%emt 0:00:08]} Bd6 {[%emt 0:00:45]} 15. Nd2 {[%emt 0:00:41]} Rhe8 {[%emt 0:00:21]} 16. Rad1 {[%emt 0:01:07]} f5 {[%emt 0:00:28]} 17. Kf1 {[%emt 0:01:07]} b6 {[%emt 0:02:49]} 18. Rg1 {[%emt 0:02:34]} Rd7 {[%emt 0:00:55]} 19. Kg2 {[%emt 0:00:49]} g6 {[%emt 0:01:20]} 20. b3 {[%emt 0:00:51]} Be7 {[%emt 0:01:03]} 21. f4 {[%emt 0:01:06]} Nc6 {[%emt 0:00:14]} 22. Nf3 {[%emt 0:00:29]} Bf6 {[%emt 0:00:24]} 23. Rxd7 {[%emt 0:00:04]} Kxd7 {[%emt 0:00:02]} 24. Rd1+ {[%emt 0:00:03]} Kc8 {[%emt 0:00:01]} 25. Rd3 {[%emt 0:00:57]} a6 {[%emt 0:00:14]} 26. Kf1 {[%emt 0:00:11]} Re7 {[%emt 0:00:11]} 27. Ke2 {[%emt 0:00:38]} Nd8 {[%emt 0:00:52]} 28. h4 {[%emt 0:00:48]} Ne6 {[%emt 0:00:04]} 29. Kd2 {[%emt 0:00:02]} Kb7 {[%emt 0:00:30]} 30. Kc2 {[%emt 0:00:13]} Kc6 {[%emt 0:00:13]} 31. Rd1 {[%emt 0:00:03]} Nc5 {[%emt 0:00:57]} 32. h5 {[%emt 0:00:59]} Ne4 {[%emt 0:00:18]} 33. hxg6 {[%emt 0:00:16]} hxg6 {[%emt 0:00:04]} 34. Bd4 {[%emt 0:00:04]} Bxd4 {[%emt 0:01:00]} 35. Nxd4+ {[%emt 0:00:02]} Kb7 {[%emt 0:00:11]} 36. f3 {[%emt 0:00:42]} Nd6 {[%emt 0:00:07]} 37. b4 {[%emt 0:00:23]} Nc4 {[%emt 0:00:54]} 38. Rg1 {[%emt 0:00:00]} Ne3+ {[%emt 0:00:02]} 39. Kd3 {[%emt 0:00:06]} Nd5 {[%emt 0:00:03]} 40. Ne2 {[%emt 0:00:14]} Re3+ {[%emt 0:00:15]} 41. Kd2 {[%emt 0:00:01]} Rxf3 {[%emt 0:00:07]} 42. Rxg6 {[%emt 0:00:02]} Rf2 {[%emt 0:00:20]} 43. Re6 {[%emt 0:00:28]} Nxf4 {[%emt 0:00:04]} 44. Re5 {[%emt 0:00:07]} Rxe2+ {[%emt 0:00:26]} 45. Rxe2 {[%emt 0:00:01]} Nxe2 {[%emt 0:00:01]} 46. Kxe2 {[%emt 0:00:02]} Kc6 {[%emt 0:00:01]} 47. a4 {[%emt 0:00:20]} Kd5 {[%emt 0:00:02]} 48. Kd3 {[%emt 0:00:01]} b5 {[%emt 0:00:03]} 0-1

[Event "RLP-ch Rapid 2024"]
[Site "Landau"]
[Date "2024.05.04"]
[Round "7.4"]
[White "Lebzak, Jaroslav"]
[Black "Hinrichs, Paul"]
[Result "1-0"]
[ECO "C58"]
[WhiteElo "2141"]
[BlackElo "2255"]
[Annotator "NA RC"]
[PlyCount "129"]
[EventDate "2024.05.03"]
[EventType "swiss"]
[EventCountry "GER"]
[SourceTitle "playchess.com"]
[Source "ChessBase"]
[SourceQuality "1"]
[TimeControl "900+5"]

1. e4 {[%emt 0:00:01]} e5 {[%emt 0:00:00]} 2. Nf3 {[%emt 0:00:02]} Nc6 {[%emt 0:00:01]} 3. Bc4 {[%emt 0:00:05]} Nf6 {[%emt 0:00:02]} 4. Ng5 {[%emt 0:00:02]} d5 {[%emt 0:00:01]} 5. exd5 {[%emt 0:00:02]} Na5 {[%emt 0:00:00]} 6. Bb5+ {[%emt 0:00:05]} c6 {[%emt 0:00:01]} 7. dxc6 {[%emt 0:00:01]} bxc6 {[%emt 0:00:01]} 8. Bd3 {[%emt 0:00:02]} Nd5 {[%emt 0:00:04]} 9. Nf3 {[%emt 0:00:06]} Bd6 {[%emt 0:00:01]} 10. O-O {[%emt 0:00:15]} O-O {[%emt 0:00:02]} 11. Re1 {[%emt 0:00:06]} Re8 {[%emt 0:00:02]} 12. Nc3 {[%emt 0:01:54]} f5 {[%emt 0:00:02]} 13. Nxd5 {[%emt 0:00:25]} cxd5 {[%emt 0:00:01]} 14. Bb5 {[%emt 0:00:03]} Bd7 {[%emt 0:00:01]} 15. Bxd7 {[%emt 0:00:05]} Qxd7 {[%emt 0:00:02]} 16. d4 {[%emt 0:00:34]} e4 {[%emt 0:00:01]} 17. Ne5 {[%emt 0:00:02]} Bxe5 {[%emt 0:00:06]} 18. dxe5 {[%emt 0:00:01]} Rxe5 {[%emt 0:00:14]} 19. Bf4 {[%emt 0:01:01]} Re6 {[%emt 0:00:02]} 20. b3 {[%emt 0:00:11]} d4 {[%emt 0:00:45]} 21. Qd2 {[%emt 0:00:35]} Nc6 {[%emt 0:00:01]} 22. Rad1 {[%emt 0:00:10]} h6 {[%emt 0:00:25]} 23. h4 {[%emt 0:00:21]} Qe7 {[%emt 0:00:09]} 24. h5 {[%emt 0:01:31]} Qh4 {[%emt 0:00:24]} 25. b4 {[%emt 0:00:11]} Rd8 {[%emt 0:00:42]} 26. b5 {[%emt 0:00:09]} Ne7 {[%emt 0:00:02]} 27. Qa5 {[%emt 0:00:54]} Rd7 {[%emt 0:00:57]} 28. Bg3 {[%emt 0:00:04]} Qxh5 {[%emt 0:00:11]} 29. Qa4 {[%emt 0:00:03]} Ng6 {[%emt 0:01:30]} 30. Qc4 {[%emt 0:01:00]} Rde7 {[%emt 0:00:52]} 31. Rxd4 {[%emt 0:01:07]} Kh7 {[%emt 0:00:03]} 32. Rd5 {[%emt 0:01:17]} Qg4 {[%emt 0:01:06]} 33. Qe2 {[%emt 0:00:40]} Qg5 {[%emt 0:00:13]} 34. c4 {[%emt 0:00:10]} Qf6 {[%emt 0:00:02]} 35. Bb8 {[%emt 0:01:17]} Rb7 {[%emt 0:01:17]} 36. Bh2 {[%emt 0:00:08]} f4 {[%emt 0:00:14]} 37. Qg4 {[%emt 0:00:08]} Rf7 {[%emt 0:00:56]} 38. c5 {[%emt 0:00:37]} Ne5 {[%emt 0:04:18]} 39. Qh3 {[%emt 0:00:45]} Nd3 {[%emt 0:00:53]} 40. Rxd3 {[%emt 0:00:15]} exd3 {[%emt 0:00:05]} 41. Qxe6 {[%emt 0:00:31]} Qxe6 {[%emt 0:00:02]} 42. Rxe6 {[%emt 0:00:01]} d2 {[%emt 0:00:00]} 43. Rd6 {[%emt 0:00:02]} Re7 {[%emt 0:00:01]} 44. Bxf4 {[%emt 0:00:04]} Re1+ {[%emt 0:00:01]} 45. Kh2 {[%emt 0:00:08]} d1=Q {[%emt 0:00:02]} 46. Rxd1 {[%emt 0:00:03]} Rxd1 {[%emt 0:00:01]} 47. b6 {[%emt 0:00:15]} axb6 {[%emt 0:00:14]} 48. cxb6 {[%emt 0:00:02]} Rb1 {[%emt 0:00:05]} 49. Bc7 {[%emt 0:00:04]} Kg6 {[%emt 0:00:19]} 50. a4 {[%emt 0:00:02]} Kf7 {[%emt 0:00:01]} 51. a5 {[%emt 0:00:16]} Ke6 {[%emt 0:00:02]} 52. a6 {[%emt 0:00:24]} Kd7 {[%emt 0:00:01]} 53. a7 {[%emt 0:00:13]} Ra1 {[%emt 0:00:09]} 54. b7 {[%emt 0:00:07]} Rxa7 {[%emt 0:00:03]} 55. b8=Q {[%emt 0:00:03]} Rxc7 {[%emt 0:00:02]} 56. Qf8 {[%emt 0:00:09]} Ke6 {[%emt 0:00:02]} 57. Kg3 {[%emt 0:00:09]} Rf7 {[%emt 0:00:01]} 58. Qe8+ {[%emt 0:00:07]} Kf6 {[%emt 0:00:02]} 59. f4 {[%emt 0:00:11]} Re7 {[%emt 0:00:02]} 60. Qc6+ {[%emt 0:00:10]} Kf7 {[%emt 0:00:02]} 61. Kg4 {[%emt 0:00:08]} Kg8 {[%emt 0:00:10]} 62. Kf5 {[%emt 0:00:08]} Rf7+ {[%emt 0:00:16]} 63. Kg6 {[%emt 0:00:10]} Rf8 {[%emt 0:00:04]} 64. Qe6+ {[%emt 0:00:03]} Kh8 {[%emt 0:00:01]} 65. Qe7 {[%emt 0:00:05]} 1-0

[Event "RLP-ch Rapid 2024"]
[Site "Landau"]
[Date "2024.05.04"]
[Round "7.5"]
[White "Sidletskyi, Ivan"]
[Black "Frischmann, Rick"]
[Result "0-1"]
[ECO "B01"]
[WhiteElo "2346"]
[BlackElo "2355"]
[Annotator "TA"]
[PlyCount "68"]
[EventDate "2024.05.03"]
[EventType "swiss"]
[EventCountry "GER"]
[SourceTitle "playchess.com"]
[Source "ChessBase"]
[SourceQuality "1"]
[TimeControl "900+5"]

{[%evp 9,68,10,20,0,4,0,0,-13,23,0,0,-45,-33,-75,-82,-96,-107,-92,26,29,28,-341,-345,-339,-333,-414,-307,-291,-293,-281,-281,-333,-321,-409,-408,-408,-406,-393,-289,-302,-300,-289,-280,-537,-375,-496,-337,-317,-344,-339,-343,-347,-325,-402,-352,-362,-361,-419,-413,-29998,-29999]} 1. e4 {[%emt 0:00:01]} d5 {[%emt 0:00:01]} 2. exd5 {[%emt 0:00:02]} Qxd5 {[%emt 0:00:02]} 3. Nc3 {[%emt 0:00:01]} Qd6 {[%emt 0:00:01]} 4. d4 {[%emt 0:00:01]} Nf6 {[%emt 0:00:01]} 5. Nge2 {[%emt 0:00:03]} Be6 {[%emt 0:00:37]} 6. Qd3 {[%emt 0:00:16]} Nc6 {[%emt 0:00:56]} 7. Bf4 {[%emt 0:00:22]} Qd7 {[%emt 0:00:03]} 8. O-O-O {[%emt 0:01:03] The position is equal.} O-O-O {[%emt 0:00:22]} (8... Nb4 {is interesting.} 9. Qf3 O-O-O 10. a3 Bg4) 9. a3 {[%emt 0:00:19]} (9. Qb5 {looks sharper.} Kb8 10. Qa4 a6 11. d5) 9... g6 {[%emt 0:01:18]} 10. Bg3 {[%emt 0:01:25]} Bg7 {[%emt 0:04:37]} 11. Na4 {[%emt 0:05:44] [#]} Nb4 $1 {[%emt 0:01:24]} 12. Nb6+ {[%emt 0:00:06]} (12. axb4 Qxa4) 12... axb6 {[%emt 0:00:05]} 13. axb4 {[%emt 0:00:00]} Nd5 {[%emt 0:00:13]} (13... Qa4 $17 14. Qa3 Qxa3 15. bxa3 h5) 14. Qa3 $11 {[%emt 0:00:07][%cal Ra3a8]} Qc6 {[%emt 0:00:54]} 15. Qb3 $2 {[%emt 0:01:49][%mdl 8192] [#] White does not recover from this.} (15. Nc3 $11 {and White is okay.} Nxc3 16. bxc3) 15... Bh6+ $1 $19 {[%emt 0:00:32]} 16. Kb1 {[%emt 0:00:07] [#]} Ne3 $1 {[%emt 0:00:20][%mdl 512]} 17. d5 {[%emt 0:00:58]} (17. Qxe3 Bxe3) 17... Bxd5 {[%emt 0:01:29]} 18. Rxd5 {[%emt 0:00:02]} Nxd5 {[%emt 0:01:04]} 19. Nd4 {[%emt 0:00:01]} Qf6 {[%emt 0:00:04]} 20. c3 {[%emt 0:01:31]} e5 {[%emt 0:00:20]} 21. Nb5 {[%emt 0:00:07]} c6 {[%emt 0:00:05]} 22. Na3 {[%emt 0:00:31]} Qf5+ {[%emt 0:00:13]} 23. Ka2 {[%emt 0:00:26]} b5 {[%emt 0:00:17]} 24. c4 {[%emt 0:00:10]} bxc4 {[%emt 0:01:06]} 25. Bxc4 {[%emt 0:00:20]} Bd2 {[%emt 0:00:11]} 26. Nc2 {[%emt 0:00:33]} (26. b5 {was called for.} Bf4 27. Rd1 Bxg3 28. bxc6 bxc6 (28... Bxf2 29. Qxb7#) (28... Nc3+ 29. Qxc3 Rxd1 30. cxb7+ Kb8 31. Qa5 $11) 29. hxg3) 26... Kc7 {[%emt 0:00:15]} 27. Bd3 {[%emt 0:00:02]} Ra8+ {[%emt 0:00:20]} ({Worse is} 27... Nc3+ 28. Qxc3 (28. bxc3 $2 Rxd3 29. Kb1 Rhd8 $19) 28... Bxc3 (28... Rxd3 $2 29. Qxe5+ Kd7 30. Qxh8 $18) 29. Bxf5 gxf5 30. bxc3 $14) 28. Kb1 {[%emt 0:00:01]} Qe6 {[%emt 0:00:02][%cal Od5c3]} 29. Bc4 {[%emt 0:00:11]} Rhd8 {[%emt 0:00:17] ...b5 is the strong threat.} 30. b5 {[%emt 0:00:29]} Bf4 {[%emt 0:00:06]} 31. Re1 {[%emt 0:00:23] Black must now prevent Bxf4.} Qd6 {[%emt 0:00:11]} (31... Bxg3 32. Qxg3 Qd6 33. Rxe5 $11) 32. Bxf4 {[%emt 0:00:27]} Nxf4 {[%emt 0:00:04]} ({Much less strong is} 32... exf4 33. bxc6 bxc6 34. Qf3 $19) 33. b6+ {[%emt 0:00:02]} Kb8 {[%emt 0:00:02][%cal Od6d1] ( -> ...Qd1+!)} 34. Bxf7 {[%emt 0:00:07] [#]} (34. Ne3 $19) 34... Qd1+ $3 {[%emt 0:00:02][%mdl 512] Weighted Error Value: White=0.75/Black=0.33.  Loses game:     	White=1     	---        Mistake:       	White=2     	Black=1      Inaccurate:     	White=3     	Black=3      OK:         	White=10    	Black=12     Best:        	White=1     	---        Strong:       	---       	Black=1      Brilliant:      	---       	Black=2} 0-1

[Event "RLP-ch Rapid 2024"]
[Site "Landau"]
[Date "2024.05.04"]
[Round "7.6"]
[White "Yakovenko, Oleg"]
[Black "Lang, Torsten"]
[Result "1/2-1/2"]
[ECO "A84"]
[WhiteElo "2281"]
[BlackElo "2299"]
[Annotator "NA RC"]
[PlyCount "100"]
[EventDate "2024.05.03"]
[EventType "swiss"]
[EventCountry "GER"]
[SourceTitle "playchess.com"]
[Source "ChessBase"]
[SourceQuality "1"]
[TimeControl "900+5"]

1. Nf3 {[%emt 0:00:01]} d5 {[%emt 0:00:07]} 2. d4 {[%emt 0:00:01]} e6 {[%emt 0:00:04]} 3. c4 {[%emt 0:00:05]} c6 {[%emt 0:00:02]} 4. e3 {[%emt 0:00:06]} f5 {[%emt 0:00:06]} 5. Be2 {[%emt 0:00:15]} Nf6 {[%emt 0:00:03]} 6. O-O {[%emt 0:00:05]} Bd6 {[%emt 0:00:13]} 7. b3 {[%emt 0:00:03]} Qe7 {[%emt 0:00:05]} 8. a4 {[%emt 0:00:10]} O-O {[%emt 0:00:12]} 9. Ba3 {[%emt 0:00:03]} Bxa3 {[%emt 0:00:11]} 10. Nxa3 {[%emt 0:00:02]} a5 {[%emt 0:00:06]} 11. Nc2 {[%emt 0:00:20]} Ne4 {[%emt 0:00:43]} 12. Nce1 {[%emt 0:00:23]} Bd7 {[%emt 0:00:47]} 13. Nd3 {[%emt 0:00:08]} Be8 {[%emt 0:00:06]} 14. Nfe5 {[%emt 0:00:14]} Nd7 {[%emt 0:00:27]} 15. Nxd7 {[%emt 0:00:22]} Bxd7 {[%emt 0:00:14]} 16. Qc2 {[%emt 0:00:20]} Be8 {[%emt 0:00:42]} 17. Rfb1 {[%emt 0:01:58]} g5 {[%emt 0:02:38]} 18. c5 {[%emt 0:00:34]} f4 {[%emt 0:00:34]} 19. exf4 {[%emt 0:00:28]} gxf4 {[%emt 0:00:03]} 20. Ne5 {[%emt 0:00:12]} Qg7 {[%emt 0:01:00]} 21. b4 {[%emt 0:00:47]} Bg6 {[%emt 0:00:10]} 22. Bd3 {[%emt 0:00:59]} Bf5 {[%emt 0:00:22]} 23. f3 {[%emt 0:00:42]} Ng5 {[%emt 0:00:15]} 24. Bxf5 {[%emt 0:00:16]} Rxf5 {[%emt 0:00:03]} 25. Qe2 {[%emt 0:02:08]} Nf7 {[%emt 0:00:58]} 26. bxa5 {[%emt 0:01:06]} Nxe5 {[%emt 0:00:12]} 27. dxe5 {[%emt 0:00:03]} Rxa5 {[%emt 0:00:20]} 28. Rb4 {[%emt 0:01:00]} Rxc5 {[%emt 0:01:03]} 29. Rab1 {[%emt 0:00:11]} Rf7 {[%emt 0:00:13]} 30. Qf2 {[%emt 0:00:45]} Rc3 {[%emt 0:00:55]} 31. h4 {[%emt 0:02:21]} Qxe5 {[%emt 0:00:31]} 32. Rxb7 {[%emt 0:00:20]} Rxb7 {[%emt 0:01:44]} 33. Rxb7 {[%emt 0:00:01]} Rc1+ {[%emt 0:00:07]} 34. Kh2 {[%emt 0:00:03]} Qa1 {[%emt 0:00:03]} 35. g3 {[%emt 0:00:30]} Qxa4 {[%emt 0:00:13]} 36. Rb8+ {[%emt 0:00:42]} Kf7 {[%emt 0:00:12]} 37. Rb7+ {[%emt 0:00:03]} Kg6 {[%emt 0:00:11]} 38. h5+ {[%emt 0:00:04]} Kh6 {[%emt 0:00:13]} 39. Rb2 {[%emt 0:00:16]} Qd1 {[%emt 0:00:16]} 40. Qg2 {[%emt 0:00:08]} Qe1 {[%emt 0:00:27]} 41. Re2 {[%emt 0:00:06]} fxg3+ {[%emt 0:00:05]} 42. Kh3 {[%emt 0:00:05]} Qh1+ {[%emt 0:00:35]} 43. Qxh1 {[%emt 0:00:01]} Rxh1+ {[%emt 0:00:02]} 44. Kxg3 {[%emt 0:00:01]} Rc1 {[%emt 0:00:17]} 45. Kg4 {[%emt 0:00:02]} Rc4+ {[%emt 0:00:07]} 46. f4 {[%emt 0:00:12]} Re4 {[%emt 0:00:29]} 47. Rc2 {[%emt 0:00:00]} e5 {[%emt 0:00:09]} 48. Rxc6+ {[%emt 0:00:04]} Kg7 {[%emt 0:00:01]} 49. h6+ {[%emt 0:00:11]} Kf7 {[%emt 0:00:06]} 50. Kf5 {[%emt 0:00:02]} Rxf4+ {[%emt 0:00:24]} 1/2-1/2